{"text_format":"1","workbook":"xlsx","n_sheets":3,"sheets":["1","druk zlecenia","dane"],"not_rendered":{"charts":0,"images":1,"macros":1,"external_links":0,"defined_names":28,"comments":0,"pivot_tables":0},"unopened":[],"bounds":{"document_bytes":16777216,"sheet_cells":100000,"rows_first":2000,"rows_last":500,"rows_between":2000,"halvings":0,"cell_chars":16384,"cell_head_chars":4096},"cells_cut":0,"cells_raw":0,"read":"whole","date_system":"1900"}

{"sheet":"1","index":0,"n_rows":2,"n_cols":2,"rows_kept":2,"cut":false,"hidden":true,"merged":[[1,1,3,6]]}
[]
[null,"W CELU WYPEŁNIENIA DRUKU ZLECENIA, \nWŁĄCZ MAKRA W EXCELU"]

{"sheet":"druk zlecenia","index":1,"n_rows":174,"n_cols":30,"rows_kept":174,"cut":false,"hidden":false,"merged":[[61,18,61,19],[61,25,61,26],[61,28,61,29],[21,12,21,13],[32,12,32,13],[32,10,32,11],[45,2,45,3],[24,12,24,14],[37,7,37,8],[31,9,31,11],[31,12,31,14],[45,10,45,11],[52,11,52,12],[58,1,58,4],[58,8,58,10],[39,2,39,3],[40,1,41,5],[39,8,39,9],[40,7,41,11],[29,6,29,10],[35,1,35,2],[34,9,34,10],[29,2,29,5],[50,11,50,12],[107,1,107,14],[62,2,62,3],[66,1,66,3],[67,1,67,3],[66,7,66,9],[67,7,67,9],[62,9,62,10],[59,1,59,2],[59,3,59,4],[59,8,59,10],[59,11,59,12],[60,1,60,4],[101,4,101,14],[61,2,61,3],[61,9,61,10],[61,12,61,13],[91,15,110,15],[111,15,127,15],[128,15,145,15],[146,15,163,15],[0,0,19,0],[20,0,39,0],[40,0,57,0],[58,0,88,0],[91,0,110,0],[111,0,127,0],[117,9,117,11],[109,1,109,14],[111,1,111,14],[112,1,112,14],[113,1,113,14],[116,2,116,3],[116,4,116,5],[99,8,99,9],[99,5,99,6],[102,1,102,14],[2,5,3,9],[91,5,92,9],[128,0,145,0],[146,0,163,0],[0,15,19,15],[20,15,39,15],[40,15,57,15],[58,15,88,15],[55,1,55,5],[55,8,55,12],[56,1,56,5],[56,8,56,12],[57,1,57,4],[57,8,57,10],[57,11,57,12],[16,1,17,1],[16,2,17,4],[18,2,18,4],[19,2,19,4],[20,2,20,4],[21,2,21,4],[16,12,17,13],[8,3,8,7],[9,3,9,7],[10,3,10,6],[12,3,12,4],[11,3,11,4],[14,3,14,10],[50,8,50,10],[51,8,51,10],[52,8,52,10],[48,8,48,12],[49,8,49,12],[49,1,49,5],[50,1,50,4],[46,10,46,11],[43,7,44,14],[51,1,51,4],[52,1,52,2],[52,3,52,4],[31,19,31,21],[31,22,31,24],[32,20,32,21],[34,19,34,21],[34,22,34,24],[35,20,35,21],[35,22,35,23],[48,1,48,5],[16,14,17,14],[28,8,28,9],[16,10,17,11],[16,8,17,9],[16,5,16,7],[18,8,18,9],[19,8,19,9],[20,8,20,9],[21,8,21,9],[18,10,18,11],[19,10,19,11],[20,10,20,11],[21,10,21,11],[18,12,18,13],[19,12,19,13],[20,12,20,13]]}
[{"$f":"dane!$H$2","v":" "},null,null,null,null,null,null,null,null,null,null,null,null,null,null,{"$f":"dane!$H$2","v":" "},null,null,null,null,null,null,"widocznosc arkusza",{"$f":"P90","v":0}]
[null,null,null,null,null,null,null,null,null,null,null,null,null,null,null,null,null,null,null,null,null,null,"??",{"$f":"IF(dane!H2<>\"\",1,0)","v":1},"zał godz",{"$f":"IF(OR(C62=\"start załadunku\",F62=\"koniec załadunku\"),0,1)","v":1},"wył godz",{"$f":"IF(OR(J62=\"start wyładunku\",M62=\"koniec wyładunku\"),0,1)","v":1},"czy direct",{"$f":"IF(OR(C30=\"częściowy DB SCHENKERpart load\",C30=\"całopojazdowy DB SCHENKERfull load\"),1,0)","v":0}]
[null,null,null,null,null,"TRANSPORT SHIPPING ORDER",null,null,null,null,null,null,null,null,null,null,null,null,null,null,null,null,"??",false,"zał typ",{"$f":"IF(C63=\"wybierz\",0,1)","v":1},"wył typ",{"$f":"IF(J63=\"wybierz\",0,1)","v":1},"załwył check",{"$f":"IF(AD2=0,0,IF(AND(Z2+Z3+AB2+AB3=4,AD2=1),0,1))","v":0}]
[null,null,null,null,null,null,null,null,null,null,null,null,null,null,null,null,null,null,null,null,null,null,"specialservice",{"$f":"VLOOKUP(C30,dane!$B$1:$E$10,4,FALSE)","v":0}]
[null,null,null,null,null,null,null,"Applicable for contracts concluded on and after 04.09.2017",null,null,null,null,null,null,null,null,null,null,null,null,null,null,"phone empty",{"$f":"IF(AND(L53=\"telephone number\",L60=\"telephone number\"),1,0)","v":1}]
[null,null,null,null,null,"                                      International Land Transport",null,null,null,null,null,null,null,null,null,null,null,null,null,null,null,null,"NIP empty",{"$f":"IF(LEN(D12)<>10,1,0)","v":1}]
[null,null,null,null,null,null,null,null,null,null,null,null,null,null,null,null,null,null,null,null,null,null,"macrotype",{"$f":"VLOOKUP(C30,dane!$B$1:$C$10,2,FALSE)","v":"normal"}]
[null,null,null,null,null,null,null,null,null,null,null,null,null,null,null,null,null,null,null,null,null,null,"ADR check",{"$f":"IF(C25=\"\",0,1)","v":0}]
[null,"CLIENT*:",null,"name",null,null,null,null,null,null,null,null,null,null,null,null,null,null,null,null,null,null,"ADR empty",{"$f":"IF(X8=0,0,IF(OR(E25=\"\",G25=\"\",I25=\"\",K25=\"\",M25=\"wybierz\"),1,0))","v":0}]
[null,null,null,"street",null,null,null,null,null,null,null,null,null,null,null,null,null,null,null,null,null,null,"ubezpieczenie check",{"$f":"IF(AND(C38=\"TAK\",H38=\"\"),1,0)","v":0}]
[null,null,null,"city",null,null,null,"postcode",null,null,null,null,null,null,null,null,null,null,null,null,null,null,"to be agreed",false]
[null,null,null,"NIP*",null,"* madatory field",null,null,null,null,null,null,null,null,null,null,null,null,null,null,null,null,"pre notice",false]
[null,null,null,"telephone number",null,null,null,null,null,null,null,null,null,null,null,null,null,null,null,null,null,null,"COD",false]
[null,null,null,null,null,null,null,null,null,null,null,null,null,null,null,null,null,null,null,null,null,null,"agreed check",{"$f":"IF(AND(X11=TRUE,OR(J32=\"contact person\",M32=\"telephone number\")),1,0)","v":0}]
[null,"CONTRACTOR:",null,"SCHENKER  sp. z o.o. ul. Żwirki i Wigury 18, 02-092 Warszawa",null,null,null,null,null,null,null,null,null,null,null,null,null,null,null,null,null,null,"pre notice check",{"$f":"IF(AND(X12=TRUE,OR(J32=\"contact person\",M32=\"telephone number\")),1,0)","v":0}]
[null,null,null,null,null,null,null,null,null,null,null,null,null,null,null,null,null,null,null,null,null,null,"time pickup",false]
[null,"Quantity *","Type of package *",null,null,"Dimensions",null,null,"Single package gross weight (kg)*",null,"All packages total gross weight (kg)*",null,"All packages total gross weight (kg)*",null,"Stackable *",null,null,null,null,null,null,null,"time delivery",false]
[null,null,null,null,null,"length [m]","width [m]","height [m]",null,null,null,null,null,null,null,null,null,null,null,null,null,null,"fix day delivery",false]
[null,null,"please select",null,null,null,null,null,null,null,null,null,null,null,"please select",null,null,null,null,null,null,null,"data gotowosci",{"$f":"IF(B61=\"Cargo readiness date*\",1,0)","v":1}]
[null,null,"please select",null,null,null,null,null,null,null,null,null,null,null,"please select"]
[{"$f":"dane!$H$2","v":" "},null,"please select",null,null,null,null,null,null,null,null,null,null,null,"please select",{"$f":"dane!$H$2","v":" "}]
[null,null,"please select",null,null,null,null,null,null,null,null,null,null,null,"please select"]
[]
[null,"If the goods are hazardous as provided for in the ADR Convention, it is required to enter::"]
[null,"UN No. ",null,"class ",null,"packaging group ",null,"weight(kg) ",null,"quantity of packages ",null,"package type ","please select"]
[]
[null,"If the goods are with LQ “Limited Quantities” exclusions, please enter: ADR consignment weight (kg): ",null,null,null,null,null,null,"and UN number ",null,null,null,null,null,null,null,null,null,null,null,null,null,null,null,"choose"]
[null,"If the goods are STRATEGIC GOODS as provided for in the Act of 29 November 2000 (Journal of Laws No.119 of 2000, item 1250 as amended), it is required to enter:"]
[null,"Goods control number: ",null,"weightkg) ",null,"quantity of packages ",null,"type of package "]
[null,"Transport system**: ","groupage DB SCHENKERsystem"]
[null,"NOTE! Information on availability of DB SCHENKERsystem premium product is defined in the Conditions of Service Provision"]
[null,"Usługi dodatkowe:",null,"Carrying the consignment",null,"  pre notice   ","COD",null,null,null,null,null,null,null,null,null,null,"amount","currency","contact person",null,null,"telephone number"]
[null,null,null,"Fix Day pick- up",null,"Fix Day delivery","          Same Day collection",null,null,"Time window pick- up",null,null,"Time window delivery",null,null,null,null,null,null,null,"choose",null,null,null,"choose"]
[null,"Payer**"]
[null,"The Party paying for transport",null,null,"Other payment conditions (according to Incoterms 2000 or 2010)**:  ",null,null,null,null,"please select"]
[null,"please select",null,null,"Incoterms conditions:   ",null,null,null,null,"please select"]
[null,null,null,null,null,"For DB SCHENKER system Premium consignments only the following conditions are available: EXW, CPT, DDT (DAP and DAT), DDP",null,null,null,null,null,null,null,null,null,null,null,"currency"]
[null,"Cargo insurance **:       ","NIE",null,"                                         Value of goods to be insured (+currency): ",null,null,null,null,"PLN"]
[null,"Special instructions (collection/delivery: fair, airport, port) – fill in if applicable"]
[null,"place of collecting","please select",null,null,null,null,"place of delivery","please select"]
[{"$f":"dane!$H$2","v":" "},"additional instructions",null,null,null,null,null,"additional instructions",null,null,null,null,null,null,null,{"$f":"dane!$H$2","v":" "},null,"delivery date"]
[]
[]
[null,"Refers to transport in the territory of Hungary",null,null,null,null,null,"If the consignment is subject to regulations of the Act on the Monitoring System for the Road Carriage of Goods (SENT), please enter:"]
[null,"If the consignment is subject to compulsory registration in the EKAER system, please enter:"]
[null,"EKAER number:   E      ",null,null,null,null,null,null,"Referential No.:                  SENT       "]
[null,null,null,null,null,null,null,null,"Key for the carrier:            KD"]
[null,"Consignor* (name, address, country, email, telephone and contact person):",null,null,null,null,null,"Consignee* (name, address, country, email, telephone and contact person):"]
[null,"name",null,null,null,null,null,null,"name"]
[null,"street",null,null,null,null,null,null,"street"]
[null,"city",null,null,null,"postcode",null,null,"city",null,null,"postcode"]
[null,"country",null,null,null,null,null,null,"country"]
[null,"contact person",null,"telephone number",null,null,null,null,"contact person",null,null,"telephone number",null,null,{"$f":"IF(OR($C$30=\"drobnicowy DB SCHENKERsystem z opcją fix day\",$X$3=TRUE),\"<-POLE OBOWIĄZKOWE!!\",\"\")","v":""}]
[]
[null,"Date and place of loading* (exact address, country, date)",null,null,null,null,null,"Place of unloading* (exact address, country)"]
[null,"name",null,null,null,null,null,null,"name"]
[null,"street",null,null,null,null,null,null,"street"]
[null,"city",null,null,null,"postcode",null,null,"city",null,null,"postcode"]
[{"$f":"dane!$H$2","v":" "},"country",null,null,null,null,null,null,"country",null,null,null,null,null,null,{"$f":"dane!$H$2","v":" "}]
[null,"contact person",null,"telephone number",null,null,null,null,"contact person",null,null,"telephone number",null,null,{"$f":"IF(OR($C$30=\"drobnicowy DB SCHENKERsystem z opcją fix day\",$X$3=TRUE),\"<-POLE OBOWIĄZKOWE!!\",\"\")","v":""}]
[null,"Cargo readiness date*"]
[null,"godziny załadunku***:    ","start of loading",null,"-","finish of unloading",null,null,"godziny wyładunku***: ","start of loading",null,"-","finish of unloading",null,null,null,null,"godziny załadunku***:    ","start załadunku",null,"-","koniec załadunku",null,null,"godziny wyładunku***: ","start wyładunku",null,"-","koniec wyładunku"]
[null,"Loading method***: ","any",null,null,null,null,null,"Unloading method***:   ","any"]
[]
[null,"Export customs clearance ** ",null,"performed",null,"to be performed in ",null,"Import customs clearance ** ",null,null,"performed",null,"to be performed in "]
[null,"the customs agency (name and address):",null,null,null,null,null,"the customs agency (name and address):"]
[null,"name",null,null,null,null,null,"name"]
[null,"adress",null,null,null,null,null,"adress"]
[]
[null,"Freight rate *: ",null," (currency:","currency",")",null,"Amount in words *: "]
[null,"+ fuel adjustment + charge for „manual booking” according to Table of additional fees and services"]
[]
[]
[]
[]
[]
[]
[]
[]
[]
[]
[]
[]
[]
[]
[null,"Registration:",null,null,"Share capital:",null,"Management Board:",null,null,"NIP: 527-010-38-24",null,null,"Registered office:"]
[null,"District Court for the Capital City of Warsaw",null,null,"PLN 186.294.430",null,"Szymon Bielas – President",null,null,"NIP UE: PL 5270103824",null,null,"ul. Żwirki i Wigury 18"]
[null,"National Court Register (KRS) 40104",null,null,null,null,null,null,null,"REGON: 010500539",null,null,"02-092 Warszawa"]
[]
[null,null,null,null,null,"Integrated Management System – number and date of the document issuance: 1-31.08.2017",null,null,null,null,null,null,null,null,null,0]
[]
["",null,null,null,null,"TRANSPORT SHIPPING ORDER",null,null,null,null,null,null,null,null,null,""]
[]
[null,null,null,null,null,null,null,"Applicable for contracts concluded on and after 04.09.2017"]
[null,null,null,null,null,"                                      International Land Transport"]
[]
[]
[null,"Payment method: bank transfer"]
[null,"Payment date: 14 days as of issuing an invoice or agreed on a case by case basis in writing or by e-mail, otherwise being null and void."]
[null,"For imports from outside the EU, the Client shall declare that the goods**: are ",null,null,null,"please select",null,"by the VAT rate of","please select"]
[]
[null,"Additional remarks and documents attached to the consignment: "]
[null,"* mandatory field; ** mark/select as appropriate; ***  Please enter preferred times of loading/unloading"]
[null,"Order terms:"]
[null,"1. Schenker shall accept rights and obligations of the contractual carrier on principles provided for in the Convention on the Contract for the International Carriage of Goods by Road (CMR) of 19 May 1956 (Journal of Laws of 1962, No. 49, item "]
[null,"238). The Schenker sp. z o.o. Terms of Provision of Services in International Road Forwarding, published on Schenker websites– www.dbschenker.pl, as to which the client declares to have read and understood, accepted without reservations "]
[null,"and committed to comply with, shall apply to all matters not settled by the order"]
[null,"2. Prices shall be converted into PLN and increased by VAT in the amount subject to the Act of 11 March 2004 on VAT (as amended)."]
[null,"3. Fuel adjustment in the amount and based on principles published on website www.dbschenker.pl shall be added to rates for transport. "]
[null,"4. If the goods are imported from outside the EU, the Client shall be obliged to sent SAD copies to Schenker by fax on the day of clearance or the next day. Failure to send SAD on time shall result in charging VAT for the entire national section by odcinek krajowy w wysokości wynikającej "]
[null,"Schenker in the amount provided for in the currently effective regulations as well as issuing a correcting invoice."]
[{"$f":"dane!$H$2","v":" "},"5. For the first order, please attach copies of documents: National Business Registry (REGON), Tax Identification Number (NIP) or EU Tax Identification Number (NIP PL) in the case of the intra-community delivery or purchasing goods (EU), ",null,null,null,null,null,null,null,null,null,null,null,null,null,{"$f":"dane!$H$2","v":" "}]
[null,"6. Schenker shall reserve the right to verify the content of a consignment (without interference in the package) using available methods and means of control."]
[null,"7. If the Client does not indicate SENT and / or EAKER numbers, it is assumed that the consignment is subject to suitable regulations in this respect. "]
[]
[]
[null,null,"place",null,"date"]
[null,null,null,null,null,null,null,null,null,"(forename and surname of the Client, stamp, signature)"]
[]
[]
[]
[]
[]
[]
[]
[]
[]
[]
[{"$f":"dane!$H$2","v":" "},null,null,null,null,null,null,null,null,null,null,null,null,null,null,{"$f":"dane!$H$2","v":" "}]
[]
[]
[]
[]
[]
[]
[]
[]
[]
[]
[]
[]
[]
[]
[]
[]
[]
[{"$f":"dane!$H$2","v":" "},null,null,null,null,null,null,null,null,null,null,null,null,null,null,{"$f":"dane!$H$2","v":" "}]
[]
[]
[]
[]
[]
[]
[]
[]
[]
[]
[]
[]
[]
[]
[null,null,null,null,null,null,null,null,null,null,null,null,null,null,null,null,null,null,{"$f":"IF(dane!H145<>\"\",1,0)","v":0}]
[]
[]
[]
[]
[]
[]
[]
[null,"Registration:",null,null,"Share capital:",null,"Management Board:",null,null,"NIP: 527-010-38-24",null,null,"Registered office:"]
[null,"District Court for the Capital City of Warsaw",null,null,"PLN 186.294.430",null,"Szymon Bielas – President",null,null,"NIP UE: PL 5270103824",null,null,"ul. Żwirki i Wigury 18"]
[null,"National Court Register (KRS) 40104",null,null,null,null,null,null,null,"REGON: 010500539",null,null,"02-092 Warszawa"]
[]
[null,null,null,null,null,"Integrated Management System – number and date of the document issuance: 1-31.08.2017"]

{"sheet":"dane","index":2,"n_rows":26,"n_cols":30,"rows_kept":26,"cut":false,"hidden":true,"merged":[]}
[null,"please select","macrotype"," ",0,null,null,"border type",null,"please select",null,"please select",null,"please select",null,"please select",null,"please select",null,"any",null,"currency",null,"please select",null,"please select",null,"please select",null,"please select"]
[null,"groupage DB SCHENKERsystem premium","premium","PREMIUM",0,null,null,{"$f":"VLOOKUP('druk zlecenia'!C30,dane!$B$1:$D$10,3,FALSE)","v":" "},null,"Shipper",null,"Incoterms 2000",null,"CIP",null,"YES",null,"Fairs",null,"back",null,"EUR",null,"exempt",null,0,null,"1/2 Euro-Palet(s)",null,"Box"]
[null,"groupage DB SCHENKERsystem premium 10","premium","PREMIUM 10",0,null,null,null,null,"Consignee",null,"Incoterms 2010",null,"CPT",null,"NO",null,"Airport",null,"side (curtain)",null,"PLN",null,"taxed",null,0.05,null,"Bag(s)",null,"Composite packaging"]
[null,"groupage DB SCHENKERsystem premium 13","premium","PREMIUM 13",0,null,null,null,null,null,null,null,null,"DAP",null,null,null,"Seaport",null,"from top",null,"USD",null,null,null,0.08,null,"Bale(s)",null,"Drum"]
[null,"groupage DB SCHENKERsystem","normal"," ",0,null,null,null,null,null,null,null,null,"DAT",null,null,null,null,null,"luton box",null,"SEK",null,null,null,0.23,null,"Barrell(s)",null,"Gas receptable"]
[null,"groupage DB SCHENKERsystem z opcją fix day","fix","FIX",1,null,null,null,null,null,null,null,null,"DDP",null,null,null,null,null,"backlift",null,"NOK",null,null,null,null,null,"Box(es)",null,"Intermediate Bulk Containter"]
[null,"groupage DB SCHENKERsystem z opcją fix day 10","fix","FIX 10",1,null,null,null,null,null,null,null,null,"DDU",null,null,null,null,null,"to 3,5t",null,"CHF",null,null,null,null,null,"Bundle(s)",null,"Jerrican"]
[null,"groupage DB SCHENKERsystem z opcją fix day 13","fix","FIX 13",1,null,null,null,null,null,null,null,null,"EXW",null,null,null,null,null,null,null,null,null,null,null,null,null,"Canister(s)",null,"Large Packaging"]
[null,"DB SCHENKERpart load","direct"," ",0,null,null,null,null,null,null,null,null,"FCA",null,null,null,null,null,null,null,null,null,null,null,null,null,"Carton(s)",null,"Light gauge metal packagings"]
[null,"DB SCHENKERfull load","direct"," ",0,null,null,null,null,null,null,null,null,null,null,null,null,null,null,null,null,null,null,null,null,null,null,"Case(s)",null,"Bag"]
[null,null,null,null,null,null,null,null,null,null,null,null,null,null,null,null,null,null,null,null,null,null,null,null,null,null,null,"Drum(s)",null,"Tank Containter"]
[null,null,null,null,null,null,null,null,null,null,null,null,null,null,null,null,null,null,null,null,null,null,null,null,null,null,null,"Europaeta(y)"]
[null,null,null,null,null,null,null,null,null,null,null,null,null,null,null,null,null,null,null,null,null,null,null,null,null,null,null,"Euro-semi-box(es)"]
[null,null,null,null,null,null,null,null,null,null,null,null,null,null,null,null,null,null,null,null,null,null,null,null,null,null,null,"Frame(s)"]
[null,null,null,null,null,null,null,null,null,null,null,null,null,null,null,null,null,null,null,null,null,null,null,null,null,null,null,"Hobock(s)"]
[null,null,null,null,null,null,null,null,null,null,null,null,null,null,null,null,null,null,null,null,null,null,null,null,null,null,null,"Lading"]
[null,null,null,null,null,null,null,null,null,null,null,null,null,null,null,null,null,null,null,null,null,null,null,null,null,null,null,"One-way pallet(s)"]
[null,null,null,null,null,null,null,null,null,null,null,null,null,null,null,null,null,null,null,null,null,null,null,null,null,null,null,"Other(s)"]
[null,null,null,null,null,null,null,null,null,null,null,null,null,null,null,null,null,null,null,null,null,null,null,null,null,null,null,"Package(s)"]
[null,null,null,null,null,null,null,null,null,null,null,null,null,null,null,null,null,null,null,null,null,null,null,null,null,null,null,"Pallet(s)"]
[null,null,null,null,null,null,null,null,null,null,null,null,null,null,null,null,null,null,null,null,null,null,null,null,null,null,null,"Parcell(s)"]
[null,null,null,null,null,null,null,null,null,null,null,null,null,null,null,null,null,null,null,null,null,null,null,null,null,null,null,"Pipe(s)"]
[null,null,null,null,null,null,null,null,null,null,null,null,null,null,null,null,null,null,null,null,null,null,null,null,null,null,null,"Roll(s)"]
[null,null,null,null,null,null,null,null,null,null,null,null,null,null,null,null,null,null,null,null,null,null,null,null,null,null,null,"Sack(s)"]
[null,null,null,null,null,null,null,null,null,null,null,null,null,null,null,null,null,null,null,null,null,null,null,null,null,null,null,"Sheet, plastic wrapping"]
[null,null,null,null,null,null,null,null,null,null,null,null,null,null,null,null,null,null,null,null,null,null,null,null,null,null,null,"Unpacked Skid(s)"]